bitfinex-derivatives/quotes_BTCF0:USTF0_20241110
["timestamp","ask_amount","ask_price","bid_price","bid_amount"]
[1731279301157,0.062008,80582.0,80580.0,0.00186136]
[1731279301950,0.3608,80583.0,80580.0,0.00186136]
[1731279302141,0.3608,80583.0,80568.0,0.06124966]
[1731279302349,0.3608,80583.0,80565.0,0.4799]
[1731279302350,0.3608,80583.0,80576.0,0.062012]
[1731279302849,0.19568,80588.0,80571.0,0.3608]
[1731279303054,0.19344,80591.0,80581.0,0.3608]
[1731279303253,0.3608,80593.0,80582.0,0.2013]
[1731279303454,0.36216,80603.0,80582.0,0.38722936]
[1731279303648,0.00186191,80610.0,80595.0,0.3608]
[1731279303853,0.22381673,80608.0,80596.0,0.3847]
[1731279304046,0.19344,80608.0,80596.0,0.57062936]
[1731279304247,0.03037231,80607.0,80596.0,0.57062936]
[1731279304444,0.19344,80608.0,80603.0,0.061991]
[1731279304651,0.03037258,80607.0,80603.0,0.061991]
[1731279304947,0.00186191,80610.0,80608.0,0.061988]
[1731279305351,0.00186191,80610.0,80608.0,0.24757572]
[1731279305550,0.11855496,80635.0,80613.0,0.061983]
[1731279305551,0.19344,80621.0,80613.0,0.061983]
[1731279305746,0.00062,80629.0,80613.0,0.061983]
[1731279306057,0.00062,80629.0,80627.0,0.061973]
[1731279306353,0.03036448,80628.0,80627.0,0.061973]
[1731279306553,0.00062,80629.0,80628.0,0.00011713]
[1731279306853,0.00062,80629.0,80628.0,0.18631308]
[1731279307055,0.00014155,80633.0,80628.0,0.55839308]
[1731279307260,0.00014155,80633.0,80632.0,0.061969]
[1731279307557,0.19526095,80662.0,80634.0,0.061967]
[1731279307769,0.00186095,80662.0,80647.0,0.11855496]
[1731279307961,0.3608,80657.0,80650.0,0.061955]
[1731279308255,0.3608,80657.0,80652.0,0.061954]
[1731279308444,9.481e-05,80656.0,80654.0,0.061952]
[1731279308847,9.481e-05,80656.0,80655.0,0.18501021]
[1731279309047,9.481e-05,80656.0,80655.0,0.55697021]
[1731279310255,9.481e-05,80656.0,80655.0,0.74209733]
[1731279314259,9.481e-05,80656.0,80655.0,1.04209733]
[1731279314458,0.061934,80678.0,80657.0,0.06195]
[1731279314660,0.061934,80678.0,80665.0,0.061943]
[1731279314858,0.061934,80678.0,80664.0,0.3608]
[1731279315173,0.061934,80678.0,80666.0,0.2486139]
[1731279315358,0.00011986,80667.0,80666.0,0.061943]
[1731279315764,0.00011986,80667.0,80666.0,0.24770406]
[1731279316554,0.36091986,80667.0,80658.0,0.061949]
[1731279316765,0.36091986,80667.0,80660.0,0.061947]
[1731279317058,0.36091986,80667.0,80665.0,0.18687328]
[1731279317258,0.36091986,80667.0,80661.0,0.37164347]
[1731279317463,0.36091986,80667.0,80660.0,0.061947]
[1731279317767,0.36091986,80667.0,80662.0,0.18496541]
[1731279317971,0.061944,80666.0,80661.0,0.3697356]
[1731279318266,0.061944,80666.0,80652.0,0.422754]
[1731279318465,0.3608,80660.0,80652.0,0.422754]
[1731279318661,0.3608,80660.0,80653.0,0.18481123]
[1731279318865,0.3608,80660.0,80652.0,0.00064]
[1731279319167,0.3608,80660.0,80636.0,0.3608]
[1731279319168,0.3608,80653.0,80639.0,0.061964]
[1731279319463,0.3608,80646.0,80642.0,0.18582898]
[1731279319767,0.3608,80646.0,80636.0,0.3608]
[1731279319768,0.3608,80646.0,80641.0,0.061962]
[1731279319970,0.3608,80646.0,80640.0,0.37093878]
[1731279320166,0.3608,80646.0,80628.0,0.12342201]
[1731279320167,0.3608,80643.0,80628.0,0.12342201]
[1731279320365,0.3608,80643.0,80628.0,0.00011713]
[1731279320666,0.3608,80638.0,80628.0,0.00011713]
[1731279323068,0.73284,80638.0,80628.0,0.00011713]
[1731279323376,0.061968,80635.0,80628.0,0.00011713]
[1731279323559,0.3608,80629.0,80628.0,0.00011713]
[1731279323765,0.55408,80629.0,80628.0,0.00011713]
[1731279324059,0.92616,80629.0,80628.0,0.00011713]
[1731279324264,0.92616,80629.0,80613.0,0.36146]
[1731279324265,0.37208,80628.0,80613.0,0.00066]
[1731279324468,0.3608,80615.0,80613.0,0.00066]
[1731279326867,0.37216,80614.0,80613.0,0.00066]
[1731279327064,0.73296,80614.0,80613.0,0.00066]
[1731279327374,0.061984,80613.0,80607.0,0.00014536]
[1731279327570,0.19332,80612.0,80607.0,0.00014536]
[1731279327770,0.255305,80612.0,80607.0,0.00014536]
[1731279328163,0.3608,80614.0,80608.0,0.061988]
[1731279328369,0.55412,80614.0,80608.0,0.061988]
[1731279328671,0.3608,80614.0,80608.0,0.061988]
[1731279328869,0.3608,80614.0,80609.0,0.061986]
[1731279329563,0.19332,80618.0,80610.0,0.18684487]
[1731279329869,0.3608,80630.0,80617.0,0.3608]
[1731279330072,0.3608,80654.0,80628.0,0.061972]
[1731279330269,0.3608,80654.0,80644.0,0.06196]
[1731279330270,0.42192065,80654.0,80644.0,0.06196]
[1731279330474,0.3608,80654.0,80644.0,0.06196]
[1731279330772,0.3608,80654.0,80645.0,0.18531208]
[1731279331165,0.00010102,80651.0,80650.0,0.061955]
[1731279331368,0.422735,80677.0,80665.0,0.061944]
[1731279331567,0.03035786,80676.0,80653.0,0.061953]
[1731279331779,0.3608,80677.0,80666.0,0.18574195]
[1731279331971,0.3608,80677.0,80665.0,0.061943]
[1731279332373,0.3608,80677.0,80667.0,0.24701679]
[1731279332571,0.00015845,80676.0,80672.0,0.061938]
[1731279335682,0.00015845,80676.0,80673.0,0.061937]
[1731279336767,0.00015845,80676.0,80674.0,0.061937]
[1731279336972,0.00015845,80676.0,80674.0,0.24773563]
[1731279337275,0.00015845,80676.0,80674.0,0.061937]
[1731279337478,0.00015845,80676.0,80675.0,0.18603595]
[1731279342285,0.00186031,80676.0,80675.0,0.18603595]
[1731279343979,0.00186031,80676.0,80675.0,0.55791595]
[1731279344879,0.3608,80686.0,80685.0,0.061929]
[1731279345284,0.3608,80686.0,80685.0,0.24715963]
[1731279345887,0.36091909,80686.0,80685.0,0.24715963]
[1731279348389,0.36091909,80686.0,80685.0,0.30909541]
[1731279352596,0.36091909,80686.0,80685.0,0.42712294]
[1731279352597,9e-08,80686.0,80685.0,0.42712294]
[1731279353692,9e-08,80686.0,80685.0,0.91695047]
[1731279354189,9e-08,80686.0,80685.0,0.79892294]
[1731279355694,9e-08,80686.0,80685.0,1.10240163]
[1731279355990,9e-08,80686.0,80685.0,0.9843741]
[1731279356587,9e-08,80686.0,80685.0,1.10240163]
[1731279357091,9e-08,80686.0,80685.0,0.9843741]
[1731279357500,9e-08,80686.0,80685.0,1.10240163]
[1731279358390,9e-08,80686.0,80685.0,1.04047263]
[1731279358591,9e-08,80686.0,80685.0,1.10240163]
[1731279359194,9e-08,80686.0,80685.0,0.9843741]
[1731279360300,0.2,80700.0,80685.0,1.10240163]
[1731279360498,0.2,80700.0,80699.0,0.17994553]
[1731279360695,0.23033587,80700.0,80699.0,0.17994553]
[1731279361000,0.23033587,80700.0,80699.0,0.36482901]
[1731279361203,0.23046656,80700.0,80699.0,0.36482901]
[1731279362894,0.23046656,80700.0,80699.0,0.42550014]
[1731279363297,0.26848887,80700.0,80699.0,0.42550014]
[1731279364996,0.23046656,80700.0,80699.0,0.42550014]
[1731279366099,0.20013069,80700.0,80699.0,0.42550014]
[1731279367000,0.23046474,80700.0,80699.0,0.42550014]
[1731279368300,0.23051308,80700.0,80699.0,0.42550014]
[1731279369096,0.23051308,80700.0,80699.0,0.36358214]
[1731279369999,0.33045363,80700.0,80694.0,0.3608]
[1731279370204,0.0683576,80699.0,80697.0,0.061919]
[1731279370395,0.7452176,80699.0,80694.0,0.3608]
[1731279370697,0.7452176,80699.0,80686.0,0.06117518]
[1731279370698,0.3608,80695.0,80686.0,0.06117518]
[1731279370899,0.3608,80687.0,80686.0,0.061928]
[1731279371202,0.3608,80687.0,80684.0,0.18465043]
[1731279371203,0.4291576,80687.0,80684.0,0.18465043]
[1731279371504,0.4291576,80687.0,80682.0,0.00185867]
[1731279371505,0.0683707,80686.0,80683.0,0.18485144]
[1731279371698,0.3608,80684.0,80683.0,0.18485144]
[1731279372004,0.3608,80684.0,80682.0,0.00185867]
[1731279372005,0.4291707,80684.0,80682.0,0.06378867]
[1731279372312,0.19116,80690.0,80682.0,0.06378867]
[1731279372313,0.03033492,80683.0,80682.0,0.06378867]
[1731279372604,0.42917038,80689.0,80682.0,0.18867748]
[1731279372806,0.06837038,80688.0,80685.0,0.061928]
[1731279373198,0.3718,80687.0,80685.0,0.061928]
[1731279373396,0.06836798,80686.0,80685.0,0.061928]
[1731279373600,0.44016798,80686.0,80685.0,0.061928]
[1731279374001,0.44016798,80686.0,80677.0,0.06353046]
[1731279374201,0.3608,80682.0,80673.0,0.061938]
[1731279374506,0.3608,80682.0,80681.0,0.061932]
[1731279374713,0.39114366,80682.0,80681.0,0.061932]
[1731279374898,0.39114366,80682.0,80681.0,0.24856263]
[1731279375495,0.3608,80682.0,80681.0,0.24856263]
[1731279380001,0.4291754,80682.0,80681.0,0.24856263]
[1731279380705,0.39114278,80682.0,80681.0,0.24856263]
[1731279380896,0.0683754,80682.0,80681.0,0.24856263]
[1731279381097,0.56097903,80700.0,80698.0,0.061919]
[1731279381298,0.56097903,80700.0,80699.0,0.11802753]
[1731279381608,0.56097903,80700.0,80699.0,0.18485974]
[1731279383002,0.11802753,80721.0,80699.0,0.18485974]
[1731279383003,1e-07,80723.0,80722.0,0.0619]
[1731279383309,0.04441924,80741.0,80722.0,0.85069587]
[1731279383612,0.04441924,80741.0,80730.0,0.3608]
[1731279383812,0.3608,80742.0,80730.0,0.3608]
[1731279383813,0.11802753,80736.0,80730.0,0.3608]
[1731279384110,0.0001543,80735.0,80725.0,0.00012211]
[1731279384502,0.3608,80734.0,80725.0,0.00012211]
[1731279384702,0.061893,80732.0,80725.0,0.00012211]
[1731279384904,0.3608,80726.0,80725.0,0.00012211]
[1731279385104,0.73244,80726.0,80725.0,0.00012211]
[1731279385407,0.061913,80705.0,80692.0,0.0622531]
[1731279385611,0.11802753,80713.0,80678.0,0.47882753]
[1731279385612,0.3608,80693.0,80678.0,0.36144]
[1731279385801,0.3608,80693.0,80678.0,0.3608]
[1731279385999,0.3608,80693.0,80679.0,0.18564435]
[1731279386204,0.3608,80693.0,80683.0,0.00014216]
[1731279386605,0.3608,80693.0,80684.0,0.18655164]
[1731279388715,0.42273697,80693.0,80684.0,0.18655164]
[1731279389212,0.03034252,80692.0,80684.0,0.18655164]
[1731279389416,0.42273697,80693.0,80684.0,0.18655164]
[1731279389417,0.03034252,80691.0,80684.0,0.18655164]
[1731279389608,0.03034252,80690.0,80684.0,0.18655164]
[1731279389812,0.03034252,80689.0,80684.0,0.18655164]
[1731279390010,0.1912,80688.0,80684.0,0.18655164]
[1731279390704,0.253126,80688.0,80684.0,0.18655164]
[1731279391307,0.0303435,80687.0,80684.0,0.18655164]
[1731279391515,0.253126,80688.0,80684.0,0.18655164]
[1731279391703,0.3608,80685.0,80684.0,0.18655164]
[1731279391910,0.39114414,80685.0,80684.0,0.18655164]
[1731279392711,0.39114432,80685.0,80684.0,0.18655164]
[1731279392914,0.42917887,80685.0,80684.0,0.18655164]
[1731279393419,0.42917887,80685.0,80684.0,0.14923177]
[1731279394707,0.39114432,80685.0,80684.0,0.14923177]
[1731279396116,0.4291788,80685.0,80684.0,0.14923177]
[1731279398211,0.4291788,80685.0,80684.0,0.28128767]
[1731279398212,0.0683788,80685.0,80684.0,0.28128767]
[1731279398406,0.3608,80708.0,80684.0,0.34321667]
[1731279398407,0.061918,80699.0,80684.0,0.34321667]
[1731279398717,0.03802849,80698.0,80685.0,0.1499]
[1731279398912,0.061918,80699.0,80687.0,0.061927]
[1731279398913,0.03802849,80697.0,80687.0,0.061927]
[1731279399118,0.03802849,80696.0,80690.0,0.3608]
[1731279399416,0.09994949,80695.0,80691.0,0.1857743]
[1731279399606,0.061921,80695.0,80691.0,0.1857743]
[1731279399814,0.061923,80693.0,80689.0,0.1857743]
[1731279400011,0.061923,80693.0,80692.0,0.1857743]
[1731279400413,0.09995335,80693.0,80690.0,0.1857743]
[1731279400706,0.061923,80693.0,80692.0,0.1856949]
[1731279401018,0.061923,80693.0,80691.0,0.1856949]
[1731279401207,0.061923,80693.0,80692.0,0.1856949]
[1731279401411,0.061923,80693.0,80688.0,0.21096011]
[1731279401718,0.061923,80693.0,80692.0,0.18635975]
[1731279401911,0.09995355,80693.0,80690.0,0.18635975]
[1731279402220,0.061923,80693.0,80692.0,0.18635975]
[1731279402418,0.09995372,80693.0,80692.0,0.18635975]
[1731279402607,0.09995372,80693.0,80690.0,0.18654613]
[1731279402818,0.3608,80695.0,80692.0,0.18654613]
[1731279402819,0.061922,80694.0,80692.0,0.18654613]
[1731279403109,0.061923,80693.0,80691.0,0.18654613]
[1731279403314,0.3608,80695.0,80690.0,0.18654613]
[1731279403613,0.3608,80695.0,80683.0,0.00014216]
[1731279403614,0.061923,80693.0,80684.0,0.18585287]
[1731279403811,0.061923,80693.0,80691.0,0.18585287]
[1731279404011,0.061923,80693.0,80690.0,0.18585287]
[1731279404214,0.061923,80693.0,80692.0,0.18585287]
[1731279404527,0.061923,80693.0,80691.0,0.18591141]
[1731279404819,0.061922,80694.0,80692.0,0.18591141]
[1731279405012,0.3608,80695.0,80685.0,0.18591141]
[1731279405207,0.061925,80690.0,80683.0,0.06207216]
[1731279405406,0.3608,80688.0,80687.0,0.18591141]
[1731279405611,0.061927,80687.0,80686.0,0.11211592]
[1731279405913,0.3608,80688.0,80683.0,0.00014216]
[1731279406117,0.061929,80684.0,80683.0,0.00014216]
[1731279406308,0.09227236,80684.0,80683.0,0.00014216]
[1731279406616,0.45307236,80684.0,80683.0,0.18693243]
[1731279407307,0.8250719,80684.0,80683.0,0.00014216]
[1731279407626,0.061937,80674.0,80673.0,0.00185923]
[1731279407812,0.46077565,80674.0,80673.0,0.00185923]
[1731279408011,0.49111901,80674.0,80673.0,0.00185923]
[1731279410217,0.45308036,80674.0,80673.0,0.00185923]
[1731279410817,0.82496036,80674.0,80673.0,0.00185923]
[1731279412227,0.061938,80673.0,80667.0,0.00012043]
[1731279412426,0.09228236,80672.0,80667.0,0.00012043]
[1731279412723,0.06194,80670.0,80668.0,0.1861103]
[1731279412923,0.19012,80670.0,80667.0,0.00012043]
[1731279413521,0.0303496,80669.0,80667.0,0.00012043]
[1731279413717,0.3608,80674.0,80667.0,0.00012043]
[1731279413718,0.0303496,80668.0,80667.0,0.00012043]
[1731279414623,0.0303496,80668.0,80666.0,0.01706343]
[1731279414924,0.0303496,80667.0,80663.0,0.06190842]
[1731279415122,0.0303496,80666.0,80663.0,0.061945]
[1731279415325,0.0303496,80665.0,80664.0,0.18486987]
[1731279416217,0.03804089,80665.0,80664.0,0.18486987]
[1731279416422,0.06839049,80665.0,80664.0,0.18486987]
[1731279416820,0.06839049,80665.0,80664.0,0.24681487]
[1731279417322,0.3608,80674.0,80667.0,0.061942]
[1731279417523,0.03034926,80673.0,80667.0,0.061942]
[1731279417722,0.03034926,80672.0,80667.0,0.061942]
[1731279418025,0.03034926,80671.0,80667.0,0.061942]
[1731279418231,0.3608,80674.0,80667.0,0.061942]
[1731279418526,0.03034906,80673.0,80667.0,0.061942]
[1731279418729,0.03034906,80672.0,80667.0,0.061942]
[1731279419031,0.03034906,80671.0,80663.0,0.00015947]
[1731279419226,0.03034906,80670.0,80663.0,0.06210447]
[1731279419425,0.422737,80674.0,80664.0,0.18709101]
[1731279419426,0.03034906,80669.0,80664.0,0.18709101]
[1731279419733,0.422737,80674.0,80664.0,0.18709101]
[1731279419922,0.03034927,80673.0,80664.0,0.18709101]
[1731279420119,0.03034927,80672.0,80664.0,0.24903601]
[1731279420327,0.06839013,80671.0,80664.0,0.24903601]
[1731279420624,0.422737,80674.0,80664.0,0.24903601]
[1731279420625,0.06839013,80670.0,80664.0,0.24903601]
[1731279420821,0.03034927,80669.0,80664.0,0.24903601]
[1731279421021,0.06839049,80668.0,80664.0,0.24903601]
[1731279421224,0.03034927,80667.0,80664.0,0.24903601]
[1731279421423,0.03034927,80666.0,80664.0,0.24903601]
[1731279421632,0.03034927,80665.0,80664.0,0.24903601]
[1731279421835,0.06839065,80672.0,80664.0,0.24903601]
[1731279422033,0.06839065,80671.0,80664.0,0.24903601]
[1731279422234,0.06839065,80670.0,80664.0,0.24903601]
[1731279422430,0.03034927,80669.0,80665.0,0.061944]
[1731279422628,0.03034927,80668.0,80665.0,0.061944]
[1731279422836,0.03034927,80667.0,80666.0,0.18573377]
[1731279423136,0.061938,80673.0,80666.0,0.18573377]
[1731279423137,0.03034927,80672.0,80666.0,0.18573377]
[1731279423336,0.03034927,80671.0,80666.0,0.18573377]
[1731279423536,0.03034927,80670.0,80666.0,0.18573377]
[1731279423728,0.03034927,80669.0,80666.0,0.18573377]
[1731279423929,0.061938,80673.0,80666.0,0.18573377]
[1731279423930,0.03034927,80668.0,80666.0,0.18573377]
[1731279424134,0.03034927,80667.0,80666.0,0.18573377]
[1731279424340,0.03034927,80667.0,80666.0,0.24767677]
[1731279426929,0.00015954,80684.0,80666.0,0.73181415]
[1731279427234,0.00015954,80684.0,80679.0,0.3608]
[1731279427430,0.00015954,80684.0,80680.0,0.1313]
[1731279427830,0.00015954,80684.0,80681.0,0.061932]
[1731279428128,0.03803399,80683.0,80681.0,0.2470309]
[1731279428334,0.03803368,80682.0,80681.0,0.2470309]
[1731279428935,0.03803368,80682.0,80681.0,0.31049989]
[1731279429331,0.00015954,80684.0,80681.0,0.24856789]
[1731279429640,0.00015954,80684.0,80683.0,0.06193]
[1731279430030,0.00015954,80684.0,80683.0,0.18573682]
[1731279430333,0.00015954,80684.0,80682.0,0.31883682]
[1731279430736,0.00015954,80684.0,80683.0,0.24848768]
[1731279430937,0.00015954,80684.0,80683.0,0.06193]
[1731279431140,0.18896,80701.0,80693.0,0.061922]
[1731279431339,0.03989029,80694.0,80693.0,0.422722]
[1731279431540,0.03802853,80694.0,80693.0,0.66374784]
[1731279431842,0.04443604,80715.0,80695.0,0.061921]
[1731279432046,0.00185912,80718.0,80712.0,0.061908]
[1731279432047,0.00014081,80713.0,80712.0,0.061908]
[1731279432342,0.04442871,80724.0,80713.0,0.18489832]
[1731279432534,0.3608,80725.0,80723.0,0.061899]
[1731279433239,0.04457755,80724.0,80723.0,0.061899]
[1731279433833,0.0001566,80724.0,80723.0,0.061899]
[1731279435039,0.0304835,80724.0,80723.0,0.061899]
[1731279435239,0.0001566,80724.0,80723.0,0.24829754]
[1731279436442,0.0001566,80724.0,80723.0,0.3105867]
[1731279437942,0.0001566,80724.0,80723.0,0.49563371]
[1731279439235,0.061879,80750.0,80732.0,0.061893]
[1731279439440,0.3911259,80733.0,80732.0,0.17994252]
[1731279439636,0.0303259,80733.0,80732.0,0.24822953]
[1731279439838,0.061881,80748.0,80738.0,0.061888]
[1731279440035,0.03032354,80743.0,80738.0,0.061888]
[1731279440232,0.18888,80749.0,80739.0,0.18633653]
[1731279440233,0.00011393,80742.0,80739.0,0.18633653]
[1731279440438,0.00011393,80742.0,80741.0,0.061886]
[1731279440940,0.00011393,80742.0,80741.0,0.24826696]
[1731279441645,0.00011393,80742.0,80741.0,0.31042348]
[1731279443645,0.00011393,80742.0,80741.0,0.68198348]
[1731279444344,0.00011393,80742.0,80741.0,0.31042348]
[1731279446452,0.00011393,80742.0,80741.0,0.18638096]
[1731279446749,0.00011393,80742.0,80738.0,0.24652341]
[1731279447041,0.00011393,80742.0,80737.0,0.3608]
[1731279447246,0.00011393,80742.0,80739.0,0.061887]
[1731279447442,0.00011393,80742.0,80739.0,0.24652241]
[1731279447642,0.00011393,80742.0,80739.0,0.061887]
[1731279448043,0.00011393,80742.0,80740.0,0.18473829]
[1731279449046,0.00011393,80742.0,80740.0,0.24662429]
[1731279449441,0.00011393,80742.0,80740.0,0.061886]
[1731279449645,0.00011393,80742.0,80741.0,0.18466184]
[1731279450854,0.00011393,80742.0,80741.0,0.28376184]
[1731279451242,0.3608,80767.0,80741.0,0.28376184]
[1731279451443,0.5484,80773.0,80763.0,0.061869]
[1731279451653,0.5484,80773.0,80746.0,0.11990706]
[1731279451848,0.5484,80773.0,80757.0,0.061873]
[1731279451849,0.3608,80764.0,80757.0,0.061873]
[1731279452342,0.00014778,80763.0,80758.0,0.24648125]
[1731279452548,0.00014778,80763.0,80759.0,0.061872]
[1731279452950,0.00014778,80763.0,80760.0,0.061871]
[1731279454857,0.00014778,80763.0,80761.0,0.06187]
[1731279457866,0.00014778,80763.0,80757.0,0.0626785]
[1731279457867,0.00014778,80763.0,80762.0,0.06187]
[1731279460249,0.03046183,80763.0,80762.0,0.06187]
[1731279460960,0.03046183,80763.0,80752.0,0.3608]
[1731279461155,0.03031405,80762.0,80761.0,0.06187]
[1731279461757,0.00014778,80763.0,80762.0,0.06187]
[1731279464155,0.03046171,80763.0,80762.0,0.06187]
[1731279466954,0.06845841,80763.0,80762.0,0.06187]
[1731279469766,0.03046171,80763.0,80762.0,0.06187]
[1731279472065,0.00014778,80763.0,80762.0,0.06187]
[1731279472260,0.03046171,80763.0,80762.0,0.06187]
[1731279472876,0.00014778,80763.0,80762.0,0.06187]
[1731279473067,0.03814478,80763.0,80762.0,0.06187]
[1731279473372,0.06845871,80763.0,80762.0,0.06187]
[1731279473872,0.06845915,80763.0,80762.0,0.06187]
[1731279474572,0.061882,80746.0,80729.0,0.00109]
[1731279474772,0.17993452,80742.0,80729.0,0.00109]
[1731279474960,0.3608,80735.0,80729.0,0.00109]
[1731279475160,0.03031457,80734.0,80729.0,0.00109]
[1731279475567,0.03031457,80734.0,80729.0,0.062985]
[1731279475967,0.03031457,80733.0,80729.0,0.062985]
[1731279476167,0.03031457,80732.0,80729.0,0.00109]
[1731279476474,0.03031457,80731.0,80729.0,0.00109]
[1731279476773,0.03031457,80730.0,80729.0,0.00109]
[1731279477072,0.03031457,80735.0,80729.0,0.00109]
[1731279477373,0.03031457,80734.0,80729.0,0.00109]
[1731279477569,0.03031457,80733.0,80729.0,0.00109]
[1731279477768,0.03031457,80732.0,80729.0,0.00109]
[1731279477966,0.03031457,80731.0,80729.0,0.00109]
[1731279478171,0.03031457,80730.0,80729.0,0.00109]
[1731279478370,0.03031457,80735.0,80729.0,0.00109]
[1731279478572,0.03032594,80734.0,80729.0,0.00109]
[1731279478773,0.03032594,80733.0,80729.0,0.00109]
[1731279478980,0.25007225,80736.0,80727.0,0.061896]
[1731279478981,0.03032594,80732.0,80727.0,0.061896]
[1731279479281,0.03032594,80731.0,80728.0,0.1851403]
[1731279479582,0.03032594,80730.0,80728.0,0.1851403]
[1731279479777,0.03032594,80729.0,80728.0,0.1851403]
[1731279480082,0.03032594,80729.0,80728.0,0.1401403]
[1731279481471,0.25007225,80736.0,80728.0,0.1401403]
[1731279481676,0.09221575,80735.0,80726.0,0.3608]
[1731279481876,0.03032575,80734.0,80726.0,0.3608]
[1731279482781,0.09221675,80734.0,80726.0,0.3608]
[1731279482980,0.03032575,80733.0,80726.0,0.3608]
[1731279484377,0.03032575,80732.0,80721.0,0.061901]
[1731279484581,0.06833829,80732.0,80721.0,0.061901]
[1731279484786,0.061894,80731.0,80722.0,0.18526833]
[1731279484975,0.061894,80731.0,80724.0,0.061898]
[1731279484976,0.03032575,80730.0,80724.0,0.061898]
[1731279485175,0.03032575,80730.0,80727.0,0.3608]
[1731279485380,0.03032575,80729.0,80727.0,0.3608]
[1731279485574,0.03032575,80728.0,80720.0,0.3608]
[1731279485878,0.03032575,80727.0,80724.0,0.24674835]
[1731279486078,0.03032575,80726.0,80724.0,0.24674835]
[1731279486284,0.3608,80733.0,80719.0,0.06099758]
[1731279486285,0.03032575,80725.0,80719.0,0.42179758]
[1731279486477,0.03032575,80724.0,80716.0,0.3608]
[1731279486673,0.3608,80733.0,80716.0,0.3608]
[1731279486674,0.3608,80733.0,80723.0,0.061899]
[1731279486870,0.06834303,80732.0,80723.0,0.061899]
[1731279487074,0.3608,80733.0,80724.0,0.1851933]
[1731279487075,0.06834303,80731.0,80724.0,0.1851933]
[1731279487284,0.06834303,80730.0,80724.0,0.1851933]
[1731279487478,0.06834303,80729.0,80724.0,0.1851933]
[1731279487675,0.03032842,80728.0,80724.0,0.1851933]
[1731279487984,0.3608,80733.0,80724.0,0.1851933]
[1731279487985,0.03032842,80727.0,80724.0,0.1851933]
[1731279488283,0.03032842,80726.0,80724.0,0.1851933]
[1731279488480,0.03032842,80725.0,80724.0,0.1851933]
[1731279491376,0.03032842,80725.0,80724.0,0.2470923]
[1731279491682,0.03032842,80725.0,80724.0,0.061899]
[1731279491883,0.03032842,80725.0,80724.0,0.24672088]
[1731279492985,0.03032842,80725.0,80724.0,0.18482188]
[1731279493374,0.03032842,80725.0,80718.0,0.18478449]
[1731279493574,0.061893,80732.0,80724.0,0.18478449]
[1731279493776,0.03032737,80731.0,80724.0,0.24668249]
[1731279493983,0.03032737,80730.0,80724.0,0.061898]
[1731279494178,0.03032737,80729.0,80724.0,0.061898]
[1731279494380,0.03032737,80728.0,80725.0,0.18497734]
[1731279494575,0.03032737,80727.0,80725.0,0.18497734]
[1731279494776,0.3608,80733.0,80725.0,0.18497734]
[1731279494777,0.03032737,80726.0,80725.0,0.18497734]
[1731279494983,0.03032737,80726.0,80720.0,0.061901]
[1731279495183,0.03032737,80725.0,80720.0,0.061901]
[1731279495386,0.17994452,80729.0,80720.0,0.061901]
[1731279495387,0.03032737,80724.0,80721.0,0.18687457]
[1731279495588,0.03032737,80723.0,80721.0,0.18687457]
[1731279495779,0.17994452,80729.0,80721.0,0.18687457]
[1731279495983,0.03032786,80728.0,80721.0,0.18687457]
[1731279496177,0.03032786,80727.0,80721.0,0.18687457]
[1731279496485,0.03032786,80727.0,80716.0,0.42346658]
[1731279496486,0.03032786,80726.0,80716.0,0.42418658]
[1731279496783,0.061896,80728.0,80716.0,0.42418658]
[1731279496784,0.03032786,80725.0,80717.0,0.18699245]
[1731279496974,0.03032786,80724.0,80717.0,0.18699245]
[1731279497175,0.061896,80728.0,80717.0,0.24889645]
[1731279497176,0.03032786,80723.0,80717.0,0.24889645]
[1731279497380,0.03032786,80722.0,80717.0,0.24889645]
[1731279497577,0.11804952,80729.0,80717.0,0.24889645]
[1731279497578,0.03032786,80721.0,80719.0,0.061902]
[1731279497879,0.11804952,80729.0,80720.0,0.061902]
[1731279498079,0.0303287,80728.0,80720.0,0.061902]
[1731279498275,0.0303287,80727.0,80720.0,0.061902]
[1731279498471,0.0303287,80726.0,80720.0,0.061902]
[1731279498687,0.0303287,80725.0,80720.0,0.061902]
[1731279498878,0.0303287,80724.0,80720.0,0.061902]
[1731279499181,0.0303287,80723.0,80720.0,0.061902]
[1731279499385,0.0303287,80722.0,80720.0,0.061902]
[1731279499574,0.0303287,80721.0,80720.0,0.061902]
[1731279502181,0.11804952,80729.0,80727.0,0.061896]
[1731279502384,0.11804952,80729.0,80728.0,0.061896]
[1731279503186,0.14837594,80729.0,80728.0,0.061896]
[1731279503485,0.03032642,80729.0,80728.0,0.061896]
[1731279503984,0.11804952,80751.0,80728.0,0.061896]
[1731279504176,0.11804952,80751.0,80746.0,0.061881]
[1731279504177,0.06833466,80748.0,80746.0,0.061881]
[1731279504483,0.3608,80752.0,80748.0,0.06188]
[1731279504679,0.03986238,80749.0,80748.0,0.06188]
[1731279505776,0.03986065,80749.0,80748.0,0.24780862]
[1731279505975,0.03986065,80749.0,80748.0,0.61932862]
[1731279506176,0.3608,80766.0,80762.0,0.06187]
[1731279506177,0.04455489,80763.0,80762.0,0.06187]
[1731279506377,0.00014778,80763.0,80762.0,0.06187]
[1731279506577,0.00014778,80763.0,80762.0,0.24753516]
[1731279510081,0.00014778,80763.0,80762.0,0.31036309]
[1731279512180,0.00014778,80763.0,80762.0,0.12469793]
[1731279512385,0.00014778,80763.0,80762.0,0.06282793]
[1731279512689,0.00014778,80763.0,80756.0,0.3608]
[1731279512690,0.00014778,80763.0,80759.0,0.061872]
[1731279513279,0.00014778,80763.0,80756.0,0.3608]
[1731279513692,0.06831354,80762.0,80756.0,0.422674]
[1731279513890,0.06831354,80761.0,80756.0,0.422674]
[1731279514088,0.00014778,80763.0,80760.0,0.11804952]
[1731279514389,0.03031287,80762.0,80761.0,0.24647515]
[1731279514601,0.00014778,80763.0,80761.0,0.24647515]
[1731279516286,0.00014778,80763.0,80762.0,0.00015823]
[1731279516794,0.00014778,80763.0,80762.0,0.18575401]
[1731279517990,0.00014778,80763.0,80762.0,0.14075401]
[1731279519087,0.00014778,80763.0,80762.0,0.20271585]
[1731279519895,7.8e-07,80763.0,80762.0,0.20271585]
[1731279520097,0.00185785,80782.0,80781.0,0.061855]
[1731279521098,0.00199829,80782.0,80781.0,0.061855]
[1731279523797,0.00199829,80782.0,80781.0,0.24672341]
[1731279523798,0.00014044,80782.0,80781.0,0.24672341]
[1731279525496,0.00014044,80782.0,80781.0,0.18486841]
[1731279525897,0.00014044,80782.0,80781.0,0.24672341]
[1731279528796,0.00014044,80782.0,80781.0,0.061855]
[1731279529195,0.03044697,80782.0,80781.0,0.061855]